[Event "US Masters 2022"]
[Site "Charlotte"]
[Date "2022.11.27"]
[Round "8.19"]
[White "Neef, Maximilian"]
[Black "Cervantes Landeiro, Thalia"]
[Result "1-0"]
[ECO "A07"]
[WhiteElo "2481"]
[BlackElo "2309"]
[Annotator "TA"]
[PlyCount "81"]
[EventDate "2022.11.23"]
[EventType "swiss"]
[EventCountry "USA"]
[SourceTitle "playchess.com"]
[Source "ChessBase"]
[SourceQuality "1"]
[TimeControl "5400+30"]

{[%evp 9,81,18,34,26,28,13,14,6,27,8,32,31,22,37,44,33,93,108,100,89,99,92,99,81,149,68,72,60,63,56,66,70,75,54,80,69,78,46,44,43,77,67,81,34,43,46,73,73,255,209,277,265,493,495,472,474,752,738,835,835,1108,1082,1055,1028,1554,1514,1486,1347,1500,1387,29984,29975,5814,3850]} 1. Nf3 {[%emt 0:00:06]} d5 {[%emt 0:00:09]} 2. g3 {[%emt 0:00:08]} Nf6 {[%emt 0:00:09]} 3. Bg2 {[%emt 0:00:06]} c6 {[%emt 0:00:18]} 4. O-O {[%emt 0:00:17]} Nbd7 {[%emt 0:01:30]} 5. d4 {[%emt 0:01:15]} g6 {[%emt 0:00:59]} 6. c4 {[%emt 0:04:08] A07: Réti Opening: New York and Capablanca Systems.} dxc4 {[%emt 0:02:54]} 7. a4 {[%emt 0:01:25]} a5 {[%emt 0:04:15]} 8. Qc2 {[%emt 0:10:20][%cal Oe2e4][%mdl 1024] White has compensation. The position is equal.} Bg7 {[%emt 0:02:54] Prevents e4.} 9. Na3 {[%emt 0:05:31]} Nb6 {[%emt 0:02:03]} 10. e4 {[%emt 0:00:57] Prevents Bf5.} O-O {[%emt 0:03:18]} 11. h3 {[%emt 0:03:07]} Bd7 {[%emt 0:05:04] [#]} 12. Be3 $146 {[%emt 0:05:24]} ({Predecessor:} 12. Rd1 Qc8 13. Kh2 c5 14. Nb5 Bxb5 15. axb5 cxd4 16. Nxd4 Nfd7 17. Be3 Qc7 18. f4 {1-0 (63) Mitrabha,G (2510)-Reefat,B (2371) Dhaka 2022}) 12... c5 {[%emt 0:08:09]} (12... Ra6 $14) 13. dxc5 $16 {[%emt 0:04:45]} Bxa4 {[%emt 0:01:21]} 14. Qb1 {[%emt 0:03:24] White is more active.} Nbd7 {[%emt 0:01:36]} 15. Nxc4 {[%emt 0:00:09]} Bb5 {[%emt 0:01:13]} 16. Rc1 {[%emt 0:00:40]} Qc7 {[%emt 0:11:47]} ({Black should play} 16... Bxc4 17. Rxc4 Qc7) 17. Nd4 {[%emt 0:12:06]} ({White should try} 17. Nb6 $16 Nxb6 18. cxb6) 17... Bxc4 $14 {[%emt 0:01:24]} 18. Rxc4 {[%emt 0:00:02]} e5 {[%emt 0:01:45]} 19. Nb5 {[%emt 0:07:33]} Qc6 {[%emt 0:00:25]} 20. Na3 {[%emt 0:00:04]} Rfc8 {[%emt 0:04:58]} 21. Qc2 {[%emt 0:03:39]} Nf8 {[%emt 0:06:50]} 22. Rd1 {[%emt 0:11:26]} Ne6 {[%emt 0:09:33]} 23. Rd6 {[%emt 0:01:04]} (23. Rd5 $5) 23... Qe8 {[%emt 0:01:34]} 24. Rb6 $36 {[%emt 0:00:26][%mdl 2048] White has good play.} Qe7 {[%emt 0:02:06]} 25. Nb5 {[%emt 0:03:18]} Rc6 {[%emt 0:01:39]} 26. Rxc6 {[%emt 0:05:54]} (26. Nc3 $16) 26... bxc6 {[%emt 0:00:09]} 27. Nd6 {[%emt 0:00:11]} Nd7 {[%emt 0:02:51]} 28. Qa4 {[%emt 0:04:22]} Ra6 $2 {[%emt 0:05:31] [#] This move loses the game for Black.} (28... Rb8 $16) 29. b4 {[%emt 0:01:40][%cal Bb2b4,Bb4a5,Ba5a6,Ba6a7][%mdl 32]} Nd4 {[%emt 0:01:18]} 30. Bf1 {[%emt 0:03:15]} (30. bxa5 Qd8 $16) 30... Nb8 $2 {[%emt 0:02:37]} (30... h5 31. h4 (31. bxa5 h4 $18) 31... Ra8 32. Bxd4 (32. bxa5 Nxc5 33. Rxc5 Qxd6 $18) 32... exd4 33. Qxc6 Rb8) 31. Rc1 $18 {[%emt 0:01:05][%cal Bc4c1,Bc1b1,Bb1b7,Bb7c7,Bc7c8][%mdl 32]} ({Resist} 31. bxa5 Nd7 32. Rc1 Nxc5 $18) 31... Ra8 {[%emt 0:00:25]} 32. bxa5 {[%emt 0:03:10]} Qa7 {[%emt 0:02:40]} (32... Ne6 $142 33. Bc4 h6) 33. Qa2 {[%emt 0:01:33]} Ne6 {[%emt 0:01:01]} 34. Rb1 {[%emt 0:00:25] [#] Strongly threatening Rb7.} Qe7 {[%emt 0:02:42]} 35. Rb7 {[%emt 0:00:48]} Nd7 {[%emt 0:00:17]} 36. Bc4 {[%emt 0:00:18]} Bf8 {[%emt 0:01:24]} 37. a6 {[%emt 0:02:26]} Nd8 {[%emt 0:02:57]} 38. Rc7 {[%emt 0:00:14]} Ne6 {[%emt 0:00:47]} 39. Bxe6 {[%emt 0:00:34]} fxe6 {[%emt 0:00:09]} 40. a7 {[%emt 0:00:06]} Kg7 {[%emt 0:01:50]} 41. Rc8 {[%emt 0:00:25] Weighted Error Value: White=0.11 (very precise) /Black=0.53} 1-0

[Event "US Masters 2022"]
[Site "Charlotte"]
[Date "2022.11.27"]
[Round "8.20"]
[White "Atanasov, Anthony"]
[Black "Raja Harshit"]
[Result "0-1"]
[ECO "D02"]
[WhiteElo "2215"]
[BlackElo "2461"]
[Annotator "TA"]
[PlyCount "97"]
[EventDate "2022.11.23"]
[EventType "swiss"]
[EventCountry "USA"]
[SourceTitle "playchess.com"]
[Source "ChessBase"]
[SourceQuality "1"]
[TimeControl "5400+30"]

{[%evp 9,97,0,0,0,0,0,16,7,-2,0,0,0,0,0,18,19,24,30,57,49,49,46,44,50,58,48,55,55,90,88,93,43,72,70,60,25,26,31,29,0,14,13,26,0,0,0,0,-22,-22,-22,-27,-21,-25,-27,-24,-24,-30,-51,-50,-122,-122,-495,-505,-688,-670,-629,-586,-412,0,-610,-608,-594,-579,-2000,-1924,-1304,-1041,-5121,-5121,-5113,-5081,-5065,-5065,-5042,-4718,-4116,-1708,-1533,-1365,-659]} 1. d4 {[%emt 0:00:03]} Nf6 {[%emt 0:12:27]} 2. Nf3 {[%emt 0:00:16]} e6 {[%emt 0:00:34]} 3. Bf4 {[%emt 0:00:20]} d5 {[%emt 0:00:12]} 4. e3 {[%emt 0:00:11]} c5 {[%emt 0:00:17]} 5. a3 {[%emt 0:00:09]} Nc6 {[%emt 0:01:33]} 6. h3 {[%emt 0:00:16] D02: 1 d4 d5 2 Nf3 sidelines, including 2...Nf6 3 g3 and 2...Nf6 3 Bf4.} cxd4 {[%emt 0:07:15]} 7. exd4 {[%emt 0:00:16] [#]} Nh5 $146 {[%emt 0:00:08]} ({Predecessor:} 7... Qb6 8. Nc3 Bd7 9. Be2 Ne7 10. O-O Ng6 11. Bh2 Be7 12. Qd2 O-O 13. Bd3 Rfc8 {½-½ (47) Moriarty,A (2278)-Borrelli,S (2100) ICCF email 2019}) 8. Bh2 {[%emt 0:00:40] The position is equal.} (8. Bg5 $5 {[%cal Rg5d8]} Nf6 9. Bf4 $11) 8... Bd6 {[%emt 0:01:03]} 9. Bxd6 {[%emt 0:00:38]} Qxd6 {[%emt 0:00:06]} 10. g3 {[%emt 0:01:05]} O-O {[%emt 0:05:55]} 11. Bg2 {[%emt 0:01:04]} e5 {[%emt 0:07:40]} 12. dxe5 {[%emt 0:00:55]} (12. Nxe5 {seems wilder.} Nxg3 13. fxg3 Nxe5 14. dxe5 Qxe5+ 15. Kf2) 12... Nxe5 {[%emt 0:00:07]} 13. O-O {[%emt 0:01:44][%cal Bh1f1,Bf1e1,Be1e5,Be5g5][%mdl 32]} Nf6 {[%emt 0:01:46][%cal Od6b6]} 14. Nxe5 {[%emt 0:17:54]} Qxe5 {[%emt 0:00:09]} 15. Nc3 {[%emt 0:00:48]} Be6 {[%emt 0:02:46]} 16. Re1 {[%emt 0:01:37]} Qc7 {[%emt 0:00:55]} 17. Qd4 {[%emt 0:04:49]} (17. Bxd5 Rad8 18. Rxe6 fxe6 19. Bxe6+ Kh8 $17) 17... Rfd8 {[%emt 0:00:31]} 18. Rad1 {[%emt 0:02:45]} h5 {[%emt 0:02:11]} 19. Re5 {[%emt 0:02:38]} Rac8 {[%emt 0:04:10]} 20. f4 {[%emt 0:11:18]} (20. Nxd5 $6 Bxd5 21. Bxd5 Qxc2 $11) (20. Rg5 $16 Kh7 21. Bxd5 (21. Nxd5 Bxd5 22. Bxd5 Qxc2 $11)) 20... Qd7 $14 {[%emt 0:13:21]} 21. Rg5 {[%emt 0:05:37]} (21. Nxd5 $2 Bxd5 22. Qf2 Qc6 23. Bxd5 Nxd5 $19) 21... Kf8 {[%emt 0:03:42]} 22. f5 {[%emt 0:09:33]} (22. Nxd5 Bxd5 23. Bxd5 Rxc2 24. Qb4+ (24. Qxa7 $2 Qxh3 $19) 24... Qe7 25. Qxe7+ (25. Qxb7 Qxb7 26. Rf1 Rxd5 27. Rxd5 Qxd5 28. Rf2 Qc5 29. h4 Qxf2+ 30. Kh1 Qh2#) 25... Kxe7 $17) 22... Bxf5 {[%emt 0:00:17]} 23. Qb4+ {[%emt 0:00:15]} (23. Qxa7 Bxh3 24. Qd4 (24. Bxd5 Qe7 $17) (24. Bxh3 Qxh3 25. Qd4 Rc6 $17) 24... Bxg2 25. Kxg2 Qc6 $17) (23. Bxd5 Bxc2 24. Qb4+ Qd6 25. Bxb7 Qxb4 26. Rxd8+ Rxd8 $17) 23... Kg8 {[%emt 0:04:05]} 24. Qd4 {[%emt 0:18:15]} (24. Nxd5 $5 Nxd5 25. Rxd5 Qxd5 26. Bxd5 Rxd5 27. c4 (27. Qxb7 Rd1+ 28. Kh2 Rxc2+) 27... Rd1+ 28. Kf2 $14) 24... Bg6 {[%emt 0:12:39]} 25. Nxd5 {[%emt 0:00:59]} (25. Bxd5 Kh8 26. Kh2 Bxc2 $17) 25... Kh8 {[%emt 0:00:17]} (25... Bxc2 {is a self mate.} 26. Nxf6+ Kf8 27. Nxd7+ Rxd7 28. Qxg7+ Ke7 29. Qe5+ Kf8 30. Rxd7 Bh7 31. Qe7#) (25... Nh7 26. Re5 Kh8 27. c3 $16 (27. Qxa7 Rxc2 28. Rde1 Rxb2 $15)) (25... Kf8 {feels hotter.} 26. c3 Qd6 27. Kf2 Rc5) 26. c4 {[%emt 0:02:45]} (26. Qxa7 $2 {perishes.} Rxc2 27. Qa5 {[#]} Rxg2+ $1 {[%mdl 512]} 28. Kxg2 Be4+ 29. Kh2 Bxd5 $19) (26. c3 {keeps more tension.} Qb5 27. Rd2 b6 28. Kh2) 26... Qa4 {[%emt 0:06:35]} 27. Rc1 {[%emt 0:05:19]} b5 {[%emt 0:00:18][%cal Rb5c4]} 28. Qe5 {[%emt 0:01:47]} (28. Qf4 $5 {[%cal Rd5f6]} Nxd5 29. Rxd5 $11 (29. Bxd5 Qb3 $11)) 28... Re8 {[%emt 0:03:12]} 29. Qd4 {[%emt 0:02:03]} Rxc4 {[%emt 0:01:08]} 30. Rxc4 {[%emt 0:00:01]} Qxc4 {[%emt 0:00:04]} 31. Qxc4 {[%emt 0:00:13]} bxc4 {[%emt 0:00:01]} 32. Nxf6 {[%emt 0:00:36]} gxf6 $11 {[%emt 0:00:02][%mdl 4096] Endgame KRB-KRB} 33. Rc5 {[%emt 0:00:28]} Bd3 {[%emt 0:03:28] aiming for ...Re1+.} 34. Rxh5+ {[%emt 0:02:07] White is now going downhill.} (34. Bd5 $15) 34... Kg7 $17 {[%emt 0:00:10] ...Re1+ is the strong threat.} 35. Rh4 $2 {[%emt 0:05:13][%mdl 8192]} (35. Bc6 $17 {is a better chance.} Re1+ 36. Kf2 Re2+ 37. Kf3) 35... Re1+ $19 {[%emt 0:00:41]} 36. Kh2 {[%emt 0:01:27]} Re2 {[%emt 0:00:16]} 37. Rg4+ {[%emt 0:01:00]} Kh6 {[%emt 0:01:09]} 38. Rh4+ {[%emt 0:00:21]} Kg7 {[%emt 0:03:35]} (38... Kg6 $142 39. Kg1 Rxb2 40. Rg4+ Kf5) 39. Rg4+ {[%emt 0:00:16]} Kf8 {[%emt 0:00:01] Black is clearly winning.} 40. Kg1 {[%emt 0:01:58]} Rxb2 {[%emt 0:00:02]} 41. Rd4 {[%emt 0:00:48] [#]} c3 $1 {[%emt 0:00:28]} 42. Rd8+ {[%emt 0:00:31]} Kg7 {[%emt 0:01:54]} 43. Rxd3 {[%emt 0:00:11] KRB-KR} c2 {[%emt 0:00:01]} 44. Rc3 {[%emt 0:00:08] Against c1Q+} Rb1+ {[%emt 0:00:01]} 45. Kf2 {[%emt 0:01:43]} c1=Q {[%emt 0:00:03]} 46. Rxc1 {[%emt 0:00:00]} Rxc1 {[%emt 0:00:02]} 47. a4 {[%emt 0:00:00]} Rc4 {[%emt 0:00:06]} (47... Rc2+ $142 48. Kf1 Rc4) 48. a5 {[%emt 0:00:00]} Ra4 {[%emt 0:00:02]} 49. Ke3 {[%emt 0:02:00] Weighted Error Value: White=0.51/Black=0.27 (precise)} 0-1

[Event "US Masters 2022"]
[Site "Charlotte"]
[Date "2022.11.27"]
[Round "8.21"]
[White "Deviprasath, Sharvesh"]
[Black "Woodward, Andy"]
[Result "1/2-1/2"]
[ECO "A16"]
[WhiteElo "2265"]
[BlackElo "2447"]
[Annotator "TA"]
[PlyCount "50"]
[EventDate "2022.11.23"]
[EventType "swiss"]
[EventCountry "USA"]
[SourceTitle "playchess.com"]
[Source "ChessBase"]
[SourceQuality "1"]
[TimeControl "5400+30"]

{[%evp 16,50,8,0,4,-27,0,0,0,0,0,-31,0,0,0,0,8,-31,2,0,-1,-21,-7,-12,-16,-10,0,-19,33,-11,0,0,-8,-24,47,32,29]} 1. c4 {[%emt 0:08:51]} Nf6 {[%emt 0:00:09]} 2. Nc3 {[%emt 0:00:12]} d5 {[%emt 0:00:07]} 3. cxd5 {[%emt 0:00:08]} Nxd5 {[%emt 0:00:08]} 4. Nf3 {[%emt 0:00:04]} g6 {[%emt 0:00:10]} 5. g3 {[%emt 0:00:05]} Bg7 {[%emt 0:00:09]} 6. Bg2 {[%emt 0:00:12]} O-O {[%emt 0:00:08]} 7. O-O {[%emt 0:00:05]} Nb6 {[%emt 0:09:42]} 8. d3 {[%emt 0:01:03]} Nc6 {[%emt 0:02:58][%cal Bb8c6,Bc6d4,Bd4f5][%mdl 32]} 9. a3 {[%emt 0:00:22]} e5 {[%emt 0:04:30] A16: English Opening: 1...Nf6 with ...d5.} 10. Be3 {[%emt 0:01:10]} h6 {[%emt 0:11:09]} 11. Rc1 {[%emt 0:01:10]} Re8 {[%emt 0:04:18] The position is equal.} 12. Re1 {[%emt 0:09:18]} Nd4 {[%emt 0:16:54] [#]} 13. Na4 $146 {[%emt 0:04:14]} ({Predecessor:} 13. Bd2 c6 14. b4 Be6 15. Rb1 Qe7 16. Na4 Rad8 17. Nc5 Bd5 18. e4 Be6 19. Nxd4 Rxd4 {0-1 (63) Giese,T (2001)-Ronge,T (2167) Germany 2019}) 13... Nf5 {[%emt 0:06:40]} 14. Bd2 {[%emt 0:00:28]} Nxa4 {[%emt 0:02:36]} 15. Qxa4 {[%emt 0:00:07][%cal Oc1c7]} Bd7 {[%emt 0:00:05]} 16. Qb3 {[%emt 0:02:06]} Bc6 {[%emt 0:00:33]} 17. Bc3 {[%emt 0:00:19]} a5 {[%emt 0:08:04][%cal Ba7a5,Ba5a4][%mdl 32]} 18. Nd2 {[%emt 0:02:21]} a4 {[%emt 0:01:03]} 19. Qc2 {[%emt 0:00:20]} Bxg2 {[%emt 0:00:43]} 20. Kxg2 {[%emt 0:00:03]} h5 {[%emt 0:01:22]} 21. Nf3 {[%emt 0:01:24]} c5 {[%emt 0:01:56]} ({Better is} 21... Nd6 $11) 22. h4 {[%emt 0:01:58]} Qd7 {[%emt 0:01:37]} 23. b4 {[%emt 0:02:09]} axb3 {[%emt 0:02:39]} 24. Qxb3 {[%emt 0:03:17]} b5 {[%emt 0:01:06]} (24... Qc6 $11) 25. e4 $14 {[%emt 0:02:38]} Nd4 {[%emt 0:06:38] Weighted Error Value: White=0.14 (very precise) /Black=0.20 (precise)} 1/2-1/2

[Event "US Masters 2022"]
[Site "Charlotte"]
[Date "2022.11.27"]
[Round "8.22"]
[White "Bora, Safal"]
[Black "Zapata, Alonso"]
[Result "1-0"]
[ECO "E66"]
[WhiteElo "2446"]
[BlackElo "2336"]
[Annotator "TA"]
[PlyCount "83"]
[EventDate "2022.11.23"]
[EventType "swiss"]
[EventCountry "USA"]
[SourceTitle "playchess.com"]
[Source "ChessBase"]
[SourceQuality "1"]
[TimeControl "5400+30"]

{[%evp 19,83,5,20,31,86,86,82,82,92,84,84,83,88,81,82,88,88,88,89,88,91,91,87,72,94,89,88,88,78,83,106,99,152,152,162,126,146,147,164,158,152,145,168,162,187,183,181,187,179,177,153,176,175,136,136,135,127,142,242,257,458,449,453,449,413,404]} 1. d4 {[%emt 0:00:31]} Nf6 {[%emt 0:01:24]} 2. Nf3 {[%emt 0:00:07]} g6 {[%emt 0:00:36]} 3. g3 {[%emt 0:00:23]} Bg7 {[%emt 0:00:05]} 4. Bg2 {[%emt 0:00:05]} O-O {[%emt 0:00:57]} 5. c4 {[%emt 0:00:16]} c5 {[%emt 0:00:39]} 6. O-O {[%emt 0:00:49]} d6 {[%emt 0:00:18]} 7. Nc3 {[%emt 0:01:08]} Nc6 {[%emt 0:00:17]} 8. d5 {[%emt 0:01:54]} Na5 {[%emt 0:00:06]} 9. Nd2 {[%emt 0:00:06]} a6 {[%emt 0:00:18]} 10. Rb1 {[%emt 0:01:49]} e6 {[%emt 0:02:09]} 11. b3 {[%emt 0:04:50] E66: King's Indian: Fianchetto: 6...c5 7 0-0 Nc6 8 d5.} Rb8 {[%emt 0:05:22] [#]} ({Better is} 11... exd5 $14 12. Nxd5 Bf5) 12. dxe6 $1 $16 {[%emt 0:05:28]} Bxe6 {[%emt 0:07:58]} 13. Nde4 {[%emt 0:00:23] White is better.} Nxe4 {[%emt 1:16:51]} 14. Nxe4 {[%emt 0:02:21]} Bf5 {[%emt 0:00:00] [#]} 15. Bg5 $146 {[%emt 0:15:29] Inhibits Qe7.} (15. Qxd6 $2 {is the wrong capture.} Qxd6 16. Nxd6 Bxb1 $19) ({Predecessor:} 15. Bf4 Be5 16. Nxd6 Bxd6 17. Qxd6 Bxb1 18. Qxb8 Qxb8 19. Bxb8 Bxa2 20. Bd6 Re8 21. Bxc5 Bxb3 22. Ra1 Rxe2 23. Bb4 Nc6 {½-½ (23) Ogaard,L (2386)-Werner,C (2258) Drammen 2018}) 15... Qd7 {[%emt 0:00:00]} 16. Qxd6 {[%emt 0:10:59]} Qxd6 {[%emt 0:00:00]} 17. Nxd6 {[%emt 0:00:02]} Bxb1 {[%emt 0:00:00]} 18. Rxb1 {[%emt 0:00:08]} Nc6 {[%emt 0:00:00] [#]} 19. Nxb7 $1 {[%emt 0:10:41][%mdl 64] Remove Defender. White has more active pieces. The black rooks are badly placed.} Rxb7 {[%emt 0:00:00]} 20. Bxc6 {[%emt 0:00:06]} Rb6 {[%emt 0:00:00]} 21. Bd5 {[%emt 0:02:47]} Re8 {[%emt 0:00:00]} 22. Be3 {[%emt 0:04:39]} Bf8 {[%emt 0:00:00]} 23. Rd1 {[%emt 0:01:01]} Kg7 {[%emt 0:00:00]} 24. Kf1 {[%emt 0:01:57]} f6 {[%emt 0:00:00]} 25. Rd3 {[%emt 0:00:59]} Rd8 {[%emt 0:00:00]} (25... a5 $142) 26. Bd2 {[%emt 0:00:19]} Rd7 {[%emt 0:00:00]} 27. Re3 {[%emt 0:03:37]} Re7 {[%emt 0:00:00] Inhibits Re8.} 28. Rf3 {[%emt 0:00:18]} Rd7 {[%emt 0:00:00]} 29. Bc3 {[%emt 0:01:21]} Be7 {[%emt 0:00:00]} 30. e4 {[%emt 0:01:10]} Bd8 {[%emt 0:00:00]} 31. g4 {[%emt 0:02:29] And now g5 would win.} h6 {[%emt 0:02:40] [#]} 32. h4 $1 {[%emt 0:00:28] Strongly threatening g5.} g5 {[%emt 0:00:17]} 33. hxg5 {[%emt 0:04:33]} hxg5 {[%emt 0:00:01]} 34. Rf5 {[%emt 0:00:47]} Kg6 {[%emt 0:01:38]} 35. e5 {[%emt 0:01:25]} fxe5 {[%emt 0:01:44]} 36. Be4 {[%emt 0:01:01] This pair of bishops is nice.} ({But not} 36. Bxe5 Bf6 $16) 36... Bf6 {[%emt 0:01:15]} 37. Bxe5 {[%emt 0:00:57]} ({Don't play} 37. Rxe5+ Kh6 38. Ba5 Bxe5 $14) 37... Bxe5 {[%emt 0:01:12]} 38. Rxe5+ {[%emt 0:00:12][%mdl 64] Discovered Attack} Kh6 {[%emt 0:00:48]} (38... Kf7 $16 {was called for.}) 39. Rxc5 $18 {[%emt 0:00:22]} Re7 $2 {[%emt 0:00:41]} (39... Rbd6 40. Ra5 Re6) 40. f3 {[%emt 0:01:14]} Rbe6 {[%emt 0:00:01]} 41. Ra5 {[%emt 0:02:24]} Rc7 {[%emt 0:02:30]} 42. Ke2 {[%emt 0:00:39] Weighted Error Value: White=0.04 (flawless) /Black=0.20 (precise)} 1-0

[Event "US Masters 2022"]
[Site "Charlotte"]
[Date "2022.11.27"]
[Round "8.23"]
[White "Beukes, Dante M"]
[Black "Kavutskiy, Konstantin"]
[Result "0-1"]
[ECO "B31"]
[WhiteElo "2299"]
[BlackElo "2383"]
[Annotator "TA"]
[PlyCount "86"]
[EventDate "2022.11.23"]
[EventType "swiss"]
[EventCountry "USA"]
[SourceTitle "playchess.com"]
[Source "ChessBase"]
[SourceQuality "1"]
[TimeControl "5400+30"]

{[%evp 14,86,17,7,18,13,20,0,8,4,30,23,45,8,32,-1,0,1,12,8,41,44,47,15,16,30,75,60,68,-8,-15,-64,-25,-107,-106,-126,-122,-176,-155,-248,-128,-138,-116,-130,-8,-34,-31,-41,-4,-5,0,-53,-30,-208,-183,-189,-26,-3,62,-66,0,-80,-10,-326,-360,-554,-558,-598,-417,-597,-450,-434,-394,-29998,-29999]} 1. e4 {[%emt 0:08:11]} c5 {[%emt 0:02:06]} 2. Nf3 {[%emt 0:00:50]} Nc6 {[%emt 0:00:08]} 3. Bb5 {[%emt 0:00:10]} g6 {[%emt 0:00:13]} 4. O-O {[%emt 0:00:05]} Bg7 {[%emt 0:00:08]} 5. c3 {[%emt 0:00:04]} Nf6 {[%emt 0:02:04]} 6. Re1 {[%emt 0:01:39]} O-O {[%emt 0:00:10]} 7. h3 {[%emt 0:03:29]} e5 {[%emt 0:11:21]} 8. d3 {[%emt 0:06:27]} Re8 {[%emt 0:05:12] B31: Sicilian: 2...Nc6 3 Bb5 g6.} 9. Be3 {[%emt 0:04:54]} b6 {[%emt 0:01:02] [#]} 10. a3 $146 {[%emt 0:01:33]} ({Predecessor:} 10. Nbd2 Bb7 11. Bc4 Qc7 12. a4 Na5 13. Bg5 {0-1 (13) Saypuri,S (2172)-Akbas,U (2292) Belgrade 2022}) 10... Bb7 {[%emt 0:02:45] The position is equal.} 11. b4 {[%emt 0:10:33]} d6 {[%emt 0:01:17]} 12. Nbd2 {[%emt 0:06:36]} Qc7 {[%emt 0:17:02]} 13. Bg5 {[%emt 0:07:07]} Nh5 {[%emt 0:04:31]} 14. Nf1 {[%emt 0:01:43]} h6 {[%emt 0:01:44]} 15. Be3 {[%emt 0:03:46]} Nf4 {[%emt 0:04:01]} 16. Qd2 {[%emt 0:03:52]} Kh7 {[%emt 0:03:21]} (16... a6 $5 {[%cal Ra6b5]} 17. Bc4 b5 $11) 17. Rac1 {[%emt 0:05:52]} Nh5 {[%emt 0:05:19]} 18. g4 {[%emt 0:16:36]} Nf6 {[%emt 0:01:21]} 19. Ng3 {[%emt 0:00:05]} Nd7 {[%emt 0:10:37]} 20. h4 {[%emt 0:05:26]} Ne7 {[%emt 0:02:06]} 21. g5 {[%emt 0:05:05]} (21. h5 $14) 21... h5 $1 $11 {[%emt 0:00:55]} 22. c4 {[%emt 0:02:26]} (22. Qe2 $11) 22... Red8 {[%emt 0:01:55]} 23. Bxd7 {[%emt 0:02:20]} (23. Ne2 $11) 23... Qxd7 $17 {[%emt 0:00:25]} 24. b5 {[%emt 0:00:04]} Qg4 {[%emt 0:02:35]} 25. Kg2 {[%emt 0:00:42]} (25. Qe2 $17) 25... a6 $19 {[%emt 0:02:33] Hoping for ...axb5.} ({Not} 25... Bc8 26. Rh1 $17) 26. Nh2 {[%emt 0:00:50]} (26. a4 $17) 26... Qe6 {[%emt 0:01:21]} ({Black should try} 26... Qxh4 $19 {aiming for ...axb5.} 27. a4 Nf5) 27. a4 $17 {[%emt 0:00:47]} Bc8 {[%emt 0:00:51]} 28. Rh1 {[%emt 0:01:31]} Bd7 {[%emt 0:00:38]} (28... Qh3+ $17 29. Kg1 Qxh4) 29. f3 {[%emt 0:00:53]} axb5 {[%emt 0:00:19]} (29... Rf8 {feels hotter.} 30. Nhf1 f5 31. gxf6 Qxf6 32. Qe2 axb5 33. axb5 Bh6) 30. axb5 {[%emt 0:00:08]} Ra3 {[%emt 0:00:13]} 31. Nhf1 {[%emt 0:00:36]} Rda8 {[%emt 0:00:06][%cal Od7b5]} 32. Bf2 {[%emt 0:00:18]} (32. Ne2 $11) 32... f5 $15 {[%emt 0:01:22]} 33. Ne2 $2 {[%emt 0:01:04]} (33. gxf6 $1 $11 {and White has nothing to worry.} Qxf6 34. Be3) 33... fxe4 $19 {[%emt 0:04:02]} 34. fxe4 {[%emt 0:00:21]} Qg4+ $2 {[%emt 0:01:05]} (34... d5 $1 $19 {And now ...Rf8 would win.} 35. cxd5 Nxd5 $1 {[%mdl 512]} 36. exd5 Qxd5+ 37. Kg1 Rxd3) 35. Bg3 $1 $11 {[%emt 0:00:37]} Rf8 {[%emt 0:04:38]} (35... Ra2 $1 $11 36. Rc2 Ra1) 36. Nh2 {[%emt 0:01:00]} (36. Ne3 $1 $14 Qe6 37. Nc3) 36... Qh3+ {[%emt 0:00:15]} 37. Kg1 {[%emt 0:00:06] [#]} Qe6 {[%emt 0:00:53] Black is much more active. The white rooks are badly placed.} (37... d5 $1 $17 {[%cal Rd5e4] ...dxe4 is the strong threat.} 38. Nf1 Qe6 39. cxd5 {[#]} Nxd5 $1 40. exd5 Qxd5) 38. Kg2 $2 {[%emt 0:00:25][%mdl 8192]} (38. Nc3 $1 $11 {and White stays safe.}) 38... d5 $1 $19 {[%emt 0:00:49]} 39. Rhf1 {[%emt 0:01:15]} (39. Rc3 $142 Qh3+ 40. Kg1 Ra1+ 41. Rc1 Rxc1+ 42. Qxc1 dxe4 43. dxe4) 39... Qh3+ {[%emt 0:03:05]} 40. Kh1 {[%emt 0:00:04]} dxe4 {[%emt 0:02:01]} 41. dxe4 {[%emt 0:00:06]} (41. Rxf8 $142 Bxf8 42. dxe4) 41... Bg4 {[%emt 0:00:53]} ({Less strong is} 41... Rxg3 42. Nxg3 Rxf1+ 43. Ngxf1 $16) 42. Rxf8 {[%emt 0:01:54]} Bxf8 {[%emt 0:00:04]} 43. Rg1 $2 {[%emt 0:00:00]} (43. Rf1 $19 Bg7 44. Be1) 43... Bf3+ {[%emt 0:00:11] Weighted Error Value: White=0.64/Black=0.34} 0-1

[Event "US Masters 2022"]
[Site "Charlotte"]
[Date "2022.11.28"]
[Round "9.1"]
[White "Yoo, Christopher Woojin"]
[Black "Ramirez, Alejandro"]
[Result "1/2-1/2"]
[ECO "E17"]
[WhiteElo "2573"]
[BlackElo "2561"]
[Annotator "TA"]
[PlyCount "43"]
[EventDate "2022.11.23"]
[EventType "swiss"]
[EventCountry "USA"]
[SourceTitle "playchess.com"]
[Source "ChessBase"]
[SourceQuality "1"]
[TimeControl "5400+30"]

{[%evp 26,30,4,6,18,0,0]} 1. Nf3 {[%emt 0:00:03]} Nf6 {[%emt 0:00:33]} 2. c4 {[%emt 0:00:12]} e6 {[%emt 0:00:51]} 3. g3 {[%emt 0:01:06]} d5 {[%emt 0:00:16]} 4. Bg2 {[%emt 0:00:02]} Be7 {[%emt 0:01:22]} 5. O-O {[%emt 0:00:05]} O-O {[%emt 0:00:07]} 6. b3 {[%emt 0:00:21]} b6 {[%emt 0:01:55]} 7. Bb2 {[%emt 0:01:25]} Bb7 {[%emt 0:00:20]} 8. cxd5 {[%emt 0:02:39]} exd5 {[%emt 0:00:55]} 9. e3 {[%emt 0:06:55]} Nbd7 {[%emt 0:01:00]} 10. Nc3 {[%emt 0:01:04]} Re8 {[%emt 0:00:55]} 11. Qc2 {[%emt 0:03:58]} a6 {[%emt 0:01:13]} 12. Rfd1 {[%emt 0:04:06]} Bd6 {[%emt 0:01:47]} 13. d4 {[%emt 0:03:42]} Qe7 {[%emt 0:00:31]} 14. Rac1 {[%emt 0:00:49]} Rac8 {[%emt 0:00:05] E17: Queen's Indian: 4 g3 Bb7 5 Bg2 Be7.} 15. Ne2 {[%emt 0:09:40]} Ne4 {[%emt 0:11:21] [#] An uneventful encounter.} {Predecessor:} 16. Nf4 $146 c6 17. Nd3 c5 18. dxc5 bxc5 19. Nd2 Ndf6 20. Nxe4 Nxe4 21. Ba3 d4 22. Re1 {0-1 (46) Lenderman,A (2634)-Esipenko,A (2682) Chess.com INT 2020} 1/2-1/2